bitfinex-derivatives/quotes_SOLF0:USTF0_20240911
["timestamp","ask_amount","ask_price","bid_price","bid_amount"]
[1726063306368,3.80284462,130.01,129.91,48.23]
[1726063306577,48.23,130.03,129.91,48.23]
[1726063306764,48.23,130.03,129.93,48.23]
[1726063306967,3.93064169,130.02,129.93,48.23]
[1726063307169,3.93064169,130.02,129.93,52.0783]
[1726063307377,48.23,130.01,129.91,48.23]
[1726063307772,48.23,130.01,129.92,3.8485]
[1726063308077,48.23,130.04,129.93,48.23]
[1726063308272,48.23,130.01,129.86,1.3115]
[1726063308474,48.23,129.99,129.88,48.23]
[1726063308971,48.23,130.03,129.92,48.23]
[1726063309277,48.23,130.05,129.94,48.23]
[1726063309472,52.09972786,130.05,129.95,4.1218]
[1726063309881,48.23,130.03,129.95,4.1218]
[1726063310269,52.09972786,130.05,129.95,4.1218]
[1726063310470,48.23,130.05,129.95,4.1218]
[1726063310676,52.16171435,130.05,129.95,4.1218]
[1726063310877,48.23,130.05,129.95,4.1218]
[1726063311374,52.09972786,130.05,129.95,4.1218]
[1726063311674,48.23,130.07,129.96,48.23]
[1726063311878,48.23,130.07,129.95,4.1218]
[1726063311879,48.23,130.1,129.98,48.23]
[1726063312377,3.81621157,130.12,130.01,48.23]
[1726063312575,48.23,130.14,130.03,48.23]
[1726063313078,48.23,130.14,130.03,52.0752]
[1726063313274,48.23,130.18,130.03,48.23]
[1726063313471,48.23,130.17,130.05,48.23]
[1726063314379,3.8427,130.13,130.07,3.844]
[1726063314682,3.8424,130.14,130.08,3.8437]
[1726063314876,48.23,130.16,130.05,48.23]
[1726063315267,52.0766273,130.19,130.07,48.23]
[1726063315472,48.23,130.21,130.09,48.23]
[1726063315674,3.8415,130.17,130.11,3.843]
[1726063315978,3.8415,130.17,130.05,48.23]
[1726063315979,52.09244986,130.17,130.05,48.23]
[1726063316181,52.14166284,130.25,130.05,2.7175]
[1726063316182,3.843,130.12,130.05,2.7175]
[1726063316370,3.91704551,130.11,130.05,2.7175]
[1726063316675,7.7224513,130.13,130.05,2.7175]
[1726063316883,3.81093003,130.12,130.05,2.7175]
[1726063317089,3.92896428,130.11,130.05,2.7175]
[1726063317388,3.92896428,130.11,129.92,7.6973]
[1726063317389,48.23,130.12,130.01,48.23]
[1726063318079,48.23,130.02,129.82,3.18959906]
[1726063318274,3.8472,129.97,129.9,1.334]
[1726063318474,48.23,129.98,129.9,1.334]
[1726063318687,48.23,129.96,129.9,1.334]
[1726063318977,48.23,129.96,129.86,1.3866]
[1726063319282,48.23,129.97,129.86,2.7206]
[1726063319485,48.23,129.97,129.87,3.8499]
[1726063319668,3.85086233,129.96,129.86,2.7206]
[1726063319867,48.23,130.05,129.86,2.7206]
[1726063319868,3.8478,129.95,129.88,3.8496]
[1726063320076,3.8478,129.95,129.87,48.23]
[1726063320284,3.78041268,129.98,129.87,48.23]
[1726063320680,48.23,130.01,129.89,48.23]
[1726063320885,48.23,129.97,129.86,50.9506]
[1726063321181,3.8497,129.89,129.84,1.3553]
[1726063321374,48.23,129.9,129.79,49.5492]
[1726063321573,48.23,129.92,129.81,48.23]
[1726063321980,48.23,129.88,129.8,1.3553]
[1726063322582,48.23,129.9,129.8,1.3553]
[1726063322885,3.80680942,129.92,129.81,48.23]
[1726063322886,52.03680942,129.92,129.81,48.23]
[1726063323077,48.23,129.9,129.8,1.3553]
[1726063323277,48.23,129.9,129.73,1.4077]
[1726063323278,48.23,129.85,129.75,48.23]
[1726063323484,3.86342628,129.84,129.75,48.23]
[1726063323880,3.8519,129.81,129.73,7.9363]
[1726063324184,48.23,129.92,129.73,4.0822]
[1726063324185,48.23,129.85,129.73,4.0822]
[1726063324375,7.67235992,129.84,129.75,48.23]
[1726063324688,48.23,129.85,129.75,48.23]
[1726063324884,48.23,129.85,129.73,4.0822]
[1726063324885,48.23,129.9,129.79,48.23]
[1726063325481,48.23,129.9,129.82,3.8515]
[1726063325482,7.61964126,129.89,129.82,3.8515]
[1726063325675,48.23,129.92,129.79,48.23]
[1726063325989,48.23,129.92,129.81,48.23]
[1726063326190,52.09076437,129.92,129.81,48.23]
[1726063326380,3.8501,129.88,129.81,3.8519]
[1726063326683,48.23,129.9,129.77,48.23]
[1726063326879,3.8511,129.84,129.77,48.23]
[1726063327079,48.23,129.92,129.74,1.3424]
[1726063327080,48.23,129.85,129.74,1.3424]
[1726063327286,48.23,129.83,129.74,1.3424]
[1726063327492,48.23,129.83,129.77,3.8529]
[1726063327681,48.23,129.92,129.77,48.23]
[1726063327682,48.23,129.87,129.77,48.23]
[1726063327882,52.02796578,129.87,129.77,48.23]
[1726063328283,48.23,129.89,129.79,48.23]
[1726063328477,48.23,129.91,129.79,48.23]
[1726063328786,48.23,129.93,129.83,48.23]
[1726063328979,52.04471494,129.93,129.83,48.23]
[1726063329481,3.83821263,129.93,129.83,48.23]
[1726063329683,48.23,129.93,129.83,48.23]
[1726063329880,3.8492,129.91,129.84,3.851]
[1726063330081,48.23,129.96,129.83,48.23]
[1726063330384,48.23,129.96,129.86,48.23]
[1726063330789,3.78697996,129.95,129.86,48.23]
[1726063330977,48.23,129.96,129.88,3.8496]
[1726063331288,48.23,129.98,129.86,48.23]
[1726063331593,3.79237288,129.98,129.88,48.23]
[1726063331784,48.23,129.98,129.85,48.23]
[1726063332091,48.23,129.96,129.85,48.23]
[1726063332792,3.88666461,129.98,129.85,48.23]
[1726063333084,8.03944255,130.06,129.91,3.8488]
[1726063333085,3.8473,129.97,129.91,3.8488]
[1726063333493,48.23,129.99,129.88,48.23]
[1726063333687,3.8475,129.96,129.88,48.23]
[1726063333884,48.23,129.99,129.88,48.23]
[1726063334396,3.76000923,130.0,129.9,48.23]
[1726063334600,48.23,130.01,129.9,48.23]
[1726063334899,3.8467,129.99,129.9,48.23]
[1726063335193,3.8467,129.99,129.93,3.8483]
[1726063335394,3.8467,129.99,129.84,2.7596]
[1726063335395,48.23,129.97,129.84,2.7596]
[1726063335597,48.23,129.97,129.84,50.9896]
[1726063335782,3.92734212,129.99,129.84,2.7596]
[1726063335987,48.23,129.99,129.86,48.23]
[1726063336189,3.8469,129.98,129.86,48.23]
[1726063336490,48.23,130.05,129.86,48.23]
[1726063336491,48.23,130.02,129.9,48.23]
[1726063336689,3.8471,129.98,129.92,3.8485]
[1726063336995,3.75990177,130.0,129.92,3.8485]
[1726063337191,3.8481,129.94,129.89,3.8495]
[1726063337587,48.23,129.99,129.86,48.23]
[1726063337788,52.1665802,129.99,129.86,48.23]
[1726063338389,3.848,129.95,129.9,3.849]
[1726063338789,3.848,129.95,129.86,48.23]
[1726063338995,3.848,129.95,129.9,3.8491]
[1726063339192,52.1665802,129.99,129.86,48.23]
[1726063339398,48.23,129.99,129.86,48.23]
[1726063339595,3.83324351,130.02,129.92,48.23]
[1726063339790,48.23,130.01,129.92,48.23]
[1726063339989,48.23,129.99,129.86,48.23]
[1726063340193,52.08249056,129.99,129.89,3.8495]
[1726063340392,48.23,129.97,129.84,50.9896]
[1726063340591,48.23,129.95,129.84,50.9896]
[1726063340997,48.23,129.93,129.84,2.7596]
[1726063341200,52.16024867,129.93,129.84,2.7596]
[1726063341499,48.23,129.91,129.84,2.7596]
[1726063341803,48.23,129.91,129.8,48.23]
[1726063342286,48.23,129.88,129.76,48.23]
[1726063342488,3.8507,129.85,129.76,48.23]
[1726063342806,48.23,129.9,129.78,48.23]
[1726063343296,52.06077663,129.9,129.8,48.23]
[1726063343493,52.06077663,129.9,129.81,2.798]
[1726063343494,48.23,129.9,129.81,2.798]
[1726063343695,48.23,129.93,129.81,2.798]
[1726063343896,48.23,129.93,129.81,4.1859]
[1726063344095,48.23,129.93,129.84,3.851]
[1726063344296,48.23,129.93,129.81,4.1859]
[1726063344499,3.8487,129.92,129.83,48.23]
[1726063344698,48.23,129.95,129.85,48.23]
[1726063344898,48.23,129.99,129.85,48.23]
[1726063345089,3.8488,129.92,129.85,48.23]
[1726063345403,3.93107431,129.93,129.83,48.23]
[1726063345589,48.23,129.94,129.87,3.85]
[1726063345790,52.10061994,129.94,129.87,3.85]
[1726063346190,48.23,129.94,129.88,3.8498]
[1726063346388,3.78475163,129.95,129.85,48.23]
[1726063346590,3.8487,129.92,129.87,3.8501]
[1726063346788,3.8487,129.92,129.84,48.23]
[1726063346789,48.23,129.95,129.84,48.23]
[1726063347102,3.8486,129.93,129.87,3.8499]
[1726063347300,3.86984982,129.95,129.84,48.23]
[1726063347502,48.23,129.94,129.82,48.23]
[1726063347700,3.8496,129.89,129.83,3.8511]
[1726063348003,48.23,129.92,129.82,48.23]
[1726063348195,7.62112972,129.92,129.84,48.23]
[1726063348394,48.23,129.97,129.84,48.23]
[1726063348599,48.23,129.99,129.88,48.23]
[1726063349191,3.8473,129.97,129.91,3.8488]
[1726063349397,3.79246591,129.97,129.91,3.8488]
[1726063349598,48.23,129.99,129.88,48.23]
[1726063349904,48.23,129.99,129.89,4.0376]
[1726063350200,48.23,129.96,129.89,2.7454]
[1726063350600,48.23,129.98,129.89,2.7454]
[1726063350803,48.23,129.96,129.86,48.23]
[1726063351312,52.17345582,129.98,129.88,48.23]
[1726063351503,48.23,129.98,129.88,48.23]
[1726063351695,48.23,129.98,129.87,2.7889]
[1726063351696,3.8496,129.89,129.87,2.7889]
[1726063352000,48.23,129.99,129.79,49.5222]
[1726063352001,48.23,129.92,129.79,49.5222]
[1726063352205,48.23,129.99,129.8,2.7457]
[1726063352206,48.23,129.89,129.8,2.7457]
[1726063353503,52.16209936,129.92,129.8,2.7457]
[1726063353708,48.23,129.94,129.82,48.23]
[1726063353907,52.16286937,129.94,129.8,2.7457]
[1726063354100,3.8498,129.89,129.8,2.7457]
[1726063354408,48.23,129.92,129.8,2.7457]
[1726063354809,3.85,129.88,129.83,3.8512]
[1726063355304,3.86333872,129.89,129.8,2.7457]
[1726063355506,48.23,129.87,129.77,48.23]
[1726063355808,48.23,129.87,129.77,2.8022]
[1726063356310,48.23,129.87,129.77,51.0322]
[1726063356506,3.92265618,129.89,129.79,48.23]
[1726063356711,3.88876049,129.9,129.79,48.23]
[1726063357010,48.23,129.92,129.79,48.23]
[1726063357410,48.23,129.9,129.8,3.852]
[1726063357808,48.23,129.9,129.77,51.0322]
[1726063358003,48.23,129.88,129.77,51.0322]
[1726063358503,48.23,129.86,129.77,2.8022]
[1726063359507,3.8511,129.84,129.77,2.8022]
[1726063359803,365.20110765,129.95,129.77,2.8022]
[1726063359804,3.91817572,129.89,129.8,48.23]
[1726063360019,3.8494,129.9,129.8,48.23]
[1726063360310,3.80335456,129.91,129.8,48.23]
[1726063360507,48.23,129.9,129.8,48.23]
[1726063360706,52.12197491,129.9,129.8,48.23]
[1726063360902,48.23,129.92,129.82,48.23]
[1726063361105,3.78158705,129.91,129.82,48.23]
[1726063361409,48.23,129.94,129.82,48.23]
[1726063361812,48.23,129.94,129.84,48.23]
[1726063362209,3.8489,129.92,129.87,3.85]
[1726063362403,3.8489,129.92,129.85,2.7043]
[1726063362610,48.23,129.94,129.85,1.2998]
[1726063362805,48.23,129.94,129.86,3.8503]
[1726063362806,3.849,129.91,129.86,3.8503]
[1726063363207,3.92488443,129.91,129.82,1.2998]
[1726063363414,48.23,129.92,129.82,1.2998]
[1726063363804,3.91971694,129.98,129.82,5.1514]
[1726063363805,48.23,129.9,129.82,5.1514]
[1726063364114,48.23,129.92,129.82,1.2998]
[1726063364315,7.64897704,129.92,129.84,48.23]
[1726063364512,3.80007704,129.92,129.84,48.23]
[1726063364724,52.01514752,129.94,129.82,1.2998]
[1726063365010,3.849,129.91,129.86,3.8503]
[1726063365211,52.01514752,129.94,129.82,1.2998]
[1726063365411,3.8494,129.9,129.85,3.8505]
[1726063365615,3.8494,129.9,129.82,1.2998]
[1726063365616,52.01514752,129.94,129.82,1.2998]
[1726063366815,52.01514752,129.94,129.84,48.23]
[1726063367014,3.8492,129.91,129.86,3.8502]
[1726063367211,52.01514752,129.94,129.84,48.23]
[1726063367419,52.01514752,129.94,129.82,49.5298]
[1726063367727,48.23,129.9,129.82,1.2998]
[1726063367911,48.23,129.9,129.81,1.3058]
[1726063367912,48.23,129.9,129.79,1.4045]
[1726063368218,48.23,129.88,129.79,1.4045]
[1726063368413,48.23,129.85,129.75,48.23]
[1726063368620,3.8515,129.83,129.78,3.8526]
[1726063368924,3.77070014,129.87,129.77,48.23]
[1726063369120,3.851,129.85,129.8,3.8521]
[1726063369310,3.84964954,129.86,129.77,48.23]
[1726063369510,48.23,129.88,129.77,48.23]
[1726063369711,48.23,129.9,129.82,3.8514]
[1726063369916,48.23,129.9,129.79,48.23]
[1726063370308,52.10506739,129.9,129.79,48.23]
[1726063370511,48.23,129.88,129.77,48.23]
[1726063370708,48.23,129.88,129.76,1.4219]
[1726063370923,3.76222752,129.88,129.76,1.4219]
[1726063371217,48.23,129.83,129.76,1.4219]
[1726063371418,3.8521,129.81,129.76,5.2752]
[1726063371619,48.23,129.83,129.76,1.4219]
[1726063371821,3.8517,129.82,129.77,3.8528]
[1726063372116,3.8517,129.82,129.74,2.6886]
[1726063372117,48.23,129.83,129.74,2.6886]
[1726063372318,3.8529,129.78,129.74,1.3928]
[1726063372519,48.23,129.81,129.74,1.3928]
[1726063373622,3.88880326,129.8,129.74,1.3928]
[1726063373919,3.8528,129.79,129.74,1.3928]
[1726063374119,3.84950296,129.8,129.74,1.3928]
[1726063374418,48.23,129.81,129.74,1.3928]
[1726063374617,3.78874325,129.81,129.74,1.3928]
[1726063374809,55.9274,129.92,129.74,1.3928]
[1726063375011,48.23,129.85,129.75,48.23]
[1726063375214,52.08851966,129.85,129.74,1.3928]
[1726063375427,48.23,129.83,129.74,1.3928]
[1726063375617,3.8527,129.79,129.74,1.3928]
[1726063375814,48.23,129.83,129.74,1.3928]
[1726063376122,48.23,129.81,129.7,49.5279]
[1726063376317,48.23,129.81,129.7,50.8792]
[1726063376517,3.8531,129.78,129.72,3.8545]
[1726063376712,48.23,129.81,129.7,50.8792]
[1726063376916,52.11319198,129.81,129.7,50.8792]
[1726063377116,48.23,129.76,129.7,2.6492]
[1726063377514,3.9488702,129.75,129.7,2.6492]
[1726063378312,3.8541,129.74,129.7,2.6492]
[1726063378519,48.23,129.78,129.7,2.6492]
[1726063379423,48.23,129.81,129.7,2.6492]
[1726063380423,48.23,129.83,129.71,48.23]
[1726063381319,48.23,129.81,129.7,2.6492]
[1726063381635,48.23,129.78,129.7,2.6492]
[1726063381923,48.23,129.76,129.65,48.23]
[1726063382129,48.23,129.74,129.64,4.0655]
[1726063382627,52.10209929,129.74,129.64,4.0655]
[1726063383030,52.10209929,129.74,129.64,52.2955]
[1726063383229,48.23,129.76,129.64,52.2955]
[1726063383944,48.23,129.74,129.64,4.0655]
[1726063384125,3.8547,129.72,129.64,4.0655]
[1726063384433,3.91129965,129.73,129.65,48.23]
[1726063384628,48.23,129.78,129.67,48.23]
[1726063384825,48.23,129.78,129.68,48.23]
[1726063385025,48.23,129.76,129.64,52.2955]
[1726063385226,48.23,129.76,129.66,3.8562]
[1726063385627,48.23,129.74,129.66,3.8562]
[1726063385834,3.8551,129.71,129.66,3.8562]
[1726063386031,48.23,129.74,129.67,3.8561]
[1726063386334,3.8545,129.73,129.64,52.2955]
[1726063386527,48.23,129.74,129.68,3.8557]
[1726063386730,48.23,129.74,129.64,52.2955]
[1726063387031,3.90512919,129.78,129.55,3.92232411]
[1726063387032,48.23,129.7,129.6,48.23]
[1726063387333,3.856,129.68,129.6,48.23]
[1726063387524,3.856,129.68,129.63,3.8571]
[1726063387925,48.23,129.73,129.6,48.23]
[1726063388227,48.23,129.73,129.62,48.23]
[1726063388436,3.8546,129.72,129.64,48.23]
[1726063388629,48.23,129.75,129.64,48.23]
[1726063389131,3.8548,129.72,129.64,48.23]
[1726063389334,48.23,129.75,129.64,48.23]
[1726063389520,3.8558,129.68,129.63,4.1259]
[1726063389723,48.23,129.73,129.63,4.1259]
[1726063390327,3.92879185,129.73,129.63,52.3559]
[1726063390631,3.8551,129.71,129.63,52.3559]
[1726063391025,48.23,129.75,129.63,52.3559]
[1726063391226,48.23,129.77,129.65,48.23]
[1726063391425,52.07469989,129.77,129.65,48.23]
[1726063391630,3.854,129.75,129.65,48.23]
[1726063391825,52.07469989,129.77,129.65,48.23]
[1726063392421,52.07469989,129.77,129.7,3.8551]
[1726063392626,52.07469989,129.77,129.68,48.23]
[1726063392825,3.8539,129.75,129.68,48.23]
[1726063393037,52.07469989,129.77,129.68,48.23]
[1726063393243,52.07469989,129.77,129.66,48.23]
[1726063393426,3.8548,129.72,129.66,48.23]
[1726063393627,52.07469989,129.77,129.66,48.23]
[1726063393937,3.8543,129.73,129.66,48.23]
[1726063394131,52.07469989,129.77,129.66,48.23]
[1726063394338,48.23,129.75,129.63,52.3559]
[1726063394535,3.8547,129.72,129.63,52.3559]
[1726063394736,3.90367584,129.74,129.63,52.3559]
[1726063395032,3.8545,129.73,129.63,4.1259]
[1726063395241,48.23,129.75,129.67,3.8559]
[1726063395537,48.23,129.75,129.63,52.3559]
[1726063395834,52.05731466,129.75,129.67,3.8561]
[1726063396033,52.05731466,129.75,129.63,52.3559]
[1726063396230,48.23,129.73,129.65,3.8564]
[1726063396432,48.23,129.73,129.63,4.1259]
[1726063396634,52.03573985,129.73,129.63,4.1259]
[1726063397231,52.03573985,129.73,129.68,3.8555]
[1726063397437,48.23,129.77,129.65,48.23]
[1726063397641,52.05541274,129.77,129.65,48.23]
[1726063397932,48.23,129.72,129.63,52.3559]
[1726063398130,3.8551,129.71,129.63,52.3559]
[1726063398324,48.23,129.74,129.68,3.8556]
[1726063398530,48.23,129.74,129.63,52.3559]
[1726063398737,3.8552,129.71,129.63,52.3559]
[1726063399037,3.80535411,129.71,129.63,52.3559]
[1726063399232,48.23,129.74,129.63,52.3559]
[1726063399427,52.0901296,129.74,129.63,52.3559]
[1726063399739,52.0901296,129.74,129.52,48.23]
[1726063399740,48.23,129.7,129.59,48.23]
[1726063400134,48.23,129.7,129.6,2.6794]
[1726063400430,48.23,129.73,129.6,3.9697]
[1726063400742,48.23,129.73,129.61,48.23]
[1726063401235,3.8557,129.69,129.65,3.8565]
[1726063401439,52.08484991,129.73,129.61,48.23]
[1726063401637,52.08484991,129.73,129.6,3.9697]
[1726063401638,3.8545,129.73,129.69,3.8554]
[1726063401831,3.84790493,129.74,129.63,48.23]
[1726063402033,3.84790493,129.74,129.65,48.23]
[1726063402234,48.23,129.77,129.65,48.23]
[1726063402541,29.64,129.77,129.66,29.64]
[1726063403538,3.8549,129.72,129.67,3.856]
[1726063403737,29.64,129.75,129.64,29.64]
[1726063403738,3.76427028,129.73,129.64,29.64]
[1726063403938,3.855,129.71,129.66,3.8561]
[1726063404240,27.20110765,129.81,129.68,29.64]
[1726063404434,3.8526,129.79,129.74,3.8538]
[1726063404627,29.64,129.81,129.7,29.64]
[1726063404832,29.64,129.83,129.72,29.64]
[1726063405027,3.8521,129.81,129.72,29.64]
[1726063405231,29.64,129.83,129.72,29.64]
[1726063405433,29.64,129.79,129.69,4.0867]
[1726063405637,29.64,129.83,129.72,29.64]
[1726063405839,3.92895711,129.82,129.74,29.64]
[1726063406136,29.64,129.81,129.7,29.64]
[1726063406440,3.94387912,129.84,129.75,48.1]
[1726063406738,51.99377119,129.86,129.75,48.1]
[1726063407042,51.99377119,129.86,129.76,4.0063]
[1726063407238,48.1,129.86,129.76,4.0063]
[1726063407446,48.1,129.88,129.77,48.1]
[1726063408243,51.9499,129.88,129.82,3.8516]
[1726063408442,48.1,129.9,129.79,48.1]
[1726063408641,48.1,129.92,129.81,48.1]
[1726063408837,48.1,129.92,129.83,3.8511]
[1726063409039,48.1,129.92,129.81,48.1]
[1726063409341,48.1,129.94,129.83,48.1]
[1726063409545,48.1,129.96,129.85,48.1]
[1726063409745,48.1,129.98,129.87,48.1]
[1726063409940,51.9471,129.98,129.91,3.8487]
[1726063410137,48.1,129.98,129.87,48.1]
[1726063411243,48.1,129.98,129.91,3.8489]
[1726063411641,48.1,130.01,129.9,48.1]
[1726063411944,48.1,130.03,129.92,48.1]
[1726063412136,48.1,130.03,129.87,48.1]
[1726063412137,3.9035662,130.04,129.94,48.1]
[1726063412342,3.8464,130.0,129.94,51.948]
[1726063412544,48.1,130.03,129.93,4.0004]
[1726063412738,51.88417931,130.05,129.93,4.0004]
[1726063412940,3.8459,130.02,129.96,3.8473]
[1726063413141,51.88417931,130.05,129.93,4.0004]
[1726063413339,51.88417931,130.05,129.94,3.848]
[1726063413633,48.1,130.03,129.94,3.848]
[1726063413837,51.88417931,130.05,129.93,4.0004]
[1726063414235,48.1,130.01,129.93,4.0004]
[1726063414436,48.1,129.99,129.93,2.7064]
[1726063415038,51.9467,129.99,129.93,6.5546]
[1726063415248,51.9467,129.99,129.93,2.7064]
[1726063415544,51.88417931,130.05,129.95,3.8476]
[1726063415545,3.8463,130.0,129.95,3.8476]
[1726063416047,48.1,130.01,129.95,3.8476]
[1726063416247,51.88417931,130.05,129.93,2.7064]
[1726063416446,48.1,130.03,129.93,2.7064]
[1726063416838,48.1,130.03,129.94,3.848]
[1726063417044,48.1,130.03,129.93,2.7064]
[1726063417246,51.88417931,130.05,129.93,2.7064]
[1726063417444,48.1,130.03,129.95,3.8477]
[1726063417949,48.1,130.03,129.93,2.7064]
[1726063417950,48.1,130.06,129.96,48.1]
[1726063418455,52.04119005,130.06,129.93,2.7064]
[1726063418753,48.1,130.02,129.93,2.7064]
[1726063419352,52.04119005,130.06,129.93,2.7064]
[1726063419353,48.1,130.0,129.93,2.7064]
[1726063419749,3.87075883,129.99,129.92,5.1715]
[1726063419943,48.1,130.0,129.92,1.3229]
[1726063420143,3.80647713,129.99,129.92,1.3229]
[1726063420666,3.8474,129.97,129.92,1.3229]
[1726063420852,48.1,129.98,129.88,2.8294]
[1726063421047,48.1,129.96,129.88,2.8294]
[1726063421251,3.8477,129.96,129.88,2.8294]
[1726063421453,48.1,129.98,129.88,2.8294]
[1726063422052,48.1,129.98,129.92,3.8485]
[1726063422247,48.1,129.98,129.88,2.8294]
[1726063422648,48.1,129.98,129.91,3.8488]
[1726063422852,51.9242062,129.98,129.88,2.8294]
[1726063423052,48.1,129.98,129.88,2.8294]
[1726063423262,48.1,129.98,129.91,3.8488]
[1726063423552,48.1,130.0,129.89,48.1]
[1726063423859,48.1,130.0,129.9,1.3348]
[1726063424354,48.1,130.02,129.91,48.1]
[1726063424554,51.9458,130.02,129.91,48.1]
[1726063424757,48.1,130.06,129.95,48.1]
[1726063425054,48.1,130.06,129.96,2.7587]
[1726063425055,3.8454,130.03,129.96,2.7587]
[1726063425246,48.1,130.13,129.97,1.4161]
[1726063425247,48.1,130.04,129.97,1.4161]
[1726063425450,48.1,130.07,129.97,1.4161]
[1726063425654,3.8453,130.04,129.98,3.8467]
[1726063425865,3.86148653,130.06,129.98,3.8467]
[1726063426056,48.1,130.05,129.97,1.4161]
[1726063426256,48.1,130.05,129.96,2.7587]
[1726063426257,48.1,130.02,129.96,2.7587]
[1726063426760,3.77606052,130.05,129.93,3.8483]
[1726063426761,48.1,130.0,129.93,3.8483]
[1726063426963,48.1,130.0,129.92,4.0635]
[1726063427266,51.9464,130.0,129.92,4.0635]
[1726063427458,48.1,130.0,129.92,4.0635]
[1726063427856,48.1,130.0,129.95,3.8478]
[1726063428468,48.1,130.0,129.92,4.0635]
[1726063428870,3.8458,130.02,129.92,52.1635]
[1726063429768,3.846,130.01,129.92,52.1635]
[1726063430064,48.1,130.03,129.92,52.1635]
[1726063430267,3.8466,130.0,129.95,3.8478]
[1726063431370,48.1,130.01,129.92,52.1635]
[1726063431566,3.77606052,130.05,129.79,11.5569]
[1726063431771,48.1,129.96,129.87,1.3711]
[1726063431963,51.95391059,129.96,129.87,1.3711]
[1726063432163,48.1,129.96,129.88,1.3909]
[1726063433065,48.1,129.98,129.88,49.4909]
[1726063433260,51.9465,130.0,129.88,49.4909]
[1726063433571,48.1,130.0,129.88,49.4909]
[1726063433957,3.847,129.98,129.94,3.8481]
[1726063434162,48.1,130.0,129.94,3.8481]
[1726063434582,3.8468,129.99,129.88,49.4909]
[1726063434867,48.1,130.0,129.88,49.4909]
[1726063435060,3.8467,129.99,129.94,3.8479]
[1726063435265,48.1,130.0,129.88,49.4909]
[1726063435463,3.78444957,129.99,129.88,49.4909]
[1726063435670,3.8477,129.96,129.92,3.8486]
[1726063435864,3.8477,129.96,129.88,49.4909]
[1726063436065,48.1,129.98,129.92,3.8486]
[1726063436272,48.1,129.98,129.88,1.3909]
[1726063436664,3.848,129.95,129.9,3.8491]
[1726063437071,3.79484218,129.97,129.9,3.8491]
[1726063437373,3.8478,129.95,129.88,1.3909]
[1726063437866,51.9476,129.96,129.91,3.8489]
[1726063438071,48.1,129.96,129.88,1.3909]
[1726063438467,3.8478,129.95,129.9,3.8491]
[1726063439169,48.1,129.96,129.88,1.3909]
[1726063440164,48.1,129.96,129.9,3.8491]
[1726063440880,27.20110765,130.04,129.88,1.3909]
[1726063440881,48.1,129.98,129.88,1.3909]
[1726063441174,48.1,129.98,129.89,3.77309054]
[1726063441175,51.9471,129.98,129.89,3.77309054]
[1726063441478,27.20110765,130.05,129.93,48.1]